[Event "Chessable Masters - Torneo preliminare"]
[White "Bok, Benjamin"]
[Black "Petrov, Nikita"]
[WhiteFideId "1017063"]
[BlackFideId "4101286"]
[WhiteElo "2608"]
[BlackElo "2514"]
[Result "1/2-1/2"]
[Round "8"]
[TimeControl "600+2"]
[Date "2023.03.13"]
[WhiteClock "0:00:07"]
[BlackClock "0:02:48"]

1. d4 {[%clk 0:09:48]}  Nf6 {[%clk 0:09:57]} 2. c4 {[%clk 0:09:49]}  e6 {[%clk 0:09:58]} 3. Nc3 {[%clk 0:09:50]}  Bb4 {[%clk 0:09:58]} 4. Qc2 {[%clk 0:09:51]}  d5 {[%clk 0:09:58]} 5. a3 {[%clk 0:09:52]}  Bxc3+ {[%clk 0:09:57]} 6. Qxc3 {[%clk 0:09:54]}  h6 {[%clk 0:09:52]} 7. Nf3 {[%clk 0:09:52]}  dxc4 {[%clk 0:09:53]} 8. Qxc4 {[%clk 0:09:51]}  b6 {[%clk 0:09:54]} 9. Bf4 {[%clk 0:09:49]}  Ba6 {[%clk 0:09:48]} 10. Qxc7 {[%clk 0:07:54]}  Qxc7 {[%clk 0:09:44]} 11. Bxc7 {[%clk 0:07:54]}  Nc6 {[%clk 0:09:46]} 12. e3 {[%clk 0:07:14]}  Bxf1 {[%clk 0:09:45]} 13. Rxf1 {[%clk 0:07:16]}  Rc8 {[%clk 0:08:28]} 14. Bg3 {[%clk 0:07:15]}  Na5 {[%clk 0:08:15]} 15. b4 {[%clk 0:04:12]}  Nb3 {[%clk 0:07:11]} 16. Rb1 {[%clk 0:04:11]}  Rc3 {[%clk 0:07:12]} 17. d5 {[%clk 0:04:07]}  Nc1 {[%clk 0:06:02]} 18. dxe6 {[%clk 0:03:07]}  fxe6 {[%clk 0:05:01]} 19. Be5 {[%clk 0:00:59]}  Nd3+ {[%clk 0:04:57]} 20. Ke2 {[%clk 0:01:00]}  Nxe5 {[%clk 0:04:33]} 21. Nxe5 {[%clk 0:01:01]}  O-O {[%clk 0:04:10]} 22. Rfc1 {[%clk 0:00:54]}  Rxa3 {[%clk 0:04:01]} 23. Ra1 {[%clk 0:00:53]}  Rb3 {[%clk 0:04:01]} 24. Rxa7 {[%clk 0:00:26]}  Nd5 {[%clk 0:03:59]} 25. Rc2 {[%clk 0:00:03]}  Nc3+ {[%clk 0:03:19]} 26. Kd3 {[%clk 0:00:04]}  Nd5+ {[%clk 0:03:17]} 27. Ke2 {[%clk 0:00:05]}  Nc3+ {[%clk 0:03:13]} 28. Kd3 {[%clk 0:00:06]}  Nd5+ {[%clk 0:02:48]} 29. Ke2 {[%clk 0:00:07]} 1/2-1/2


[Site "Internet"]

[Event "Chessable Masters - Torneo preliminare"]
[White "Narayanan, Srinath"]
[Black "Harikrishna, Pentala"]
[WhiteFideId "5018420"]
[BlackFideId "5007003"]
[WhiteElo "2482"]
[BlackElo "2627"]
[Result "0-1"]
[Round "8"]
[TimeControl "600+2"]
[Date "2023.03.13"]
[WhiteClock "0:02:26"]
[BlackClock "0:02:01"]

1. Nf3 {[%clk 0:10:01]}  c5 {[%clk 0:09:57]} 2. c4 {[%clk 0:09:58]}  Nc6 {[%clk 0:09:56]} 3. Nc3 {[%clk 0:09:58]}  Nf6 {[%clk 0:09:56]} 4. g3 {[%clk 0:09:58]}  g6 {[%clk 0:09:52]} 5. Bg2 {[%clk 0:09:58]}  d6 {[%clk 0:09:53]} 6. d4 {[%clk 0:09:52]}  cxd4 {[%clk 0:09:54]} 7. Nxd4 {[%clk 0:09:54]}  Bd7 {[%clk 0:09:55]} 8. O-O {[%clk 0:09:54]}  Bg7 {[%clk 0:09:53]} 9. Nc2 {[%clk 0:09:03]}  Qc8 {[%clk 0:09:23]} 10. Nd5 {[%clk 0:08:27]}  Bh3 {[%clk 0:09:20]} 11. Bg5 {[%clk 0:07:28]}  Bxg2 {[%clk 0:08:24]} 12. Kxg2 {[%clk 0:07:30]}  Ne4 {[%clk 0:08:18]} 13. Bc1 {[%clk 0:06:56]}  e6 {[%clk 0:08:13]} 14. Nde3 {[%clk 0:06:52]}  O-O {[%clk 0:07:28]} 15. f3 {[%clk 0:06:46]}  Nc5 {[%clk 0:07:29]} 16. Qxd6 {[%clk 0:06:40]}  b6 {[%clk 0:07:00]} 17. Rb1 {[%clk 0:06:27]}  Rd8 {[%clk 0:06:17]} 18. Qf4 {[%clk 0:06:27]}  Qa6 {[%clk 0:06:18]} 19. a3 {[%clk 0:05:58]}  Nb3 {[%clk 0:06:07]} 20. Ng4 {[%clk 0:05:55]}  f5 {[%clk 0:05:56]} 21. Nge3 {[%clk 0:04:57]}  Ncd4 {[%clk 0:05:26]} 22. Nxd4 {[%clk 0:04:26]}  Rxd4 {[%clk 0:05:25]} 23. Qc7 {[%clk 0:04:22]}  Qc8 {[%clk 0:04:17]} 24. Qe7 {[%clk 0:04:21]}  Qc6 {[%clk 0:03:46]} 25. Qb4 {[%clk 0:04:16]}  Nxc1 {[%clk 0:03:30]} 26. Rbxc1 {[%clk 0:04:18]}  Bh6 {[%clk 0:03:27]} 27. Qc3 {[%clk 0:03:55]}  Bg7 {[%clk 0:02:49]} 28. Qb3 {[%clk 0:03:18]}  Rd2 {[%clk 0:02:40]} 29. Rc2 {[%clk 0:03:16]}  Rad8 {[%clk 0:02:40]} 30. Rxd2 {[%clk 0:02:46]}  Rxd2 {[%clk 0:02:38]} 31. Rd1 {[%clk 0:02:48]}  Rxe2+ {[%clk 0:02:32]} 32. Kh3 {[%clk 0:02:25]}  Qxf3 {[%clk 0:02:23]} 33. Rd8+ {[%clk 0:02:26]}  Bf8 {[%clk 0:02:01]} 0-1


[Site "Internet"]

[Event "Chessable Masters - Torneo preliminare"]
[White "Chirila, Ioan-Cristian"]
[Black "Makhnev, Denis"]
[WhiteFideId "1211668"]
[BlackFideId "13707647"]
[WhiteElo "2508"]
[BlackElo "2505"]
[Result "1-0"]
[Round "8"]
[TimeControl "600+2"]
[Date "2023.03.13"]
[WhiteClock "0:00:26"]
[BlackClock "0:00:07"]

1. d4 {[%clk 0:10:01]}  Nf6 {[%clk 0:10:00]} 2. c4 {[%clk 0:10:01]}  e6 {[%clk 0:10:00]} 3. Nf3 {[%clk 0:10:02]}  d5 {[%clk 0:10:01]} 4. Nc3 {[%clk 0:10:02]}  c6 {[%clk 0:10:02]} 5. Qd3 {[%clk 0:09:53]}  Nbd7 {[%clk 0:09:16]} 6. Bg5 {[%clk 0:09:33]}  h6 {[%clk 0:08:33]} 7. Bh4 {[%clk 0:09:32]}  Bb4 {[%clk 0:08:28]} 8. a3 {[%clk 0:09:17]}  Qa5 {[%clk 0:07:59]} 9. Rc1 {[%clk 0:09:09]}  Bxc3+ {[%clk 0:07:59]} 10. Qxc3 {[%clk 0:09:09]}  Qxc3+ {[%clk 0:08:00]} 11. Rxc3 {[%clk 0:09:08]}  Ne4 {[%clk 0:08:01]} 12. Rc1 {[%clk 0:09:01]}  g5 {[%clk 0:04:14]} 13. Bg3 {[%clk 0:09:01]}  f6 {[%clk 0:04:16]} 14. Nd2 {[%clk 0:08:24]}  Nxg3 {[%clk 0:04:08]} 15. hxg3 {[%clk 0:08:25]}  Ke7 {[%clk 0:04:09]} 16. e4 {[%clk 0:08:01]}  dxc4 {[%clk 0:04:02]} 17. Nxc4 {[%clk 0:07:40]}  b6 {[%clk 0:03:23]} 18. d5 {[%clk 0:04:17]}  Nc5 {[%clk 0:01:20]} 19. dxc6 {[%clk 0:03:49]}  Nxe4 {[%clk 0:01:20]} 20. Ne3 {[%clk 0:03:48]}  Nd6 {[%clk 0:01:06]} 21. b4 {[%clk 0:03:12]}  b5 {[%clk 0:01:00]} 22. Bd3 {[%clk 0:02:37]}  a5 {[%clk 0:00:56]} 23. Ke2 {[%clk 0:02:39]}  axb4 {[%clk 0:00:40]} 24. axb4 {[%clk 0:02:41]}  Ra2+ {[%clk 0:00:41]} 25. Rc2 {[%clk 0:02:24]}  Ra4 {[%clk 0:00:41]} 26. g4 {[%clk 0:01:43]}  Ba6 {[%clk 0:00:37]} 27. Rb2 {[%clk 0:01:24]}  Rc8 {[%clk 0:00:16]} 28. Rc1 {[%clk 0:01:01]}  Nc4 {[%clk 0:00:16]} 29. Bxc4 {[%clk 0:00:52]}  Rxc6 {[%clk 0:00:16]} 30. Rbb1 {[%clk 0:00:26]}  bxc4 {[%clk 0:00:07]} 31. b5 {[%clk 0:00:27]}  Bxb5 {[%clk 0:00:08]} 32. Rxb5 {[%clk 0:00:28]}  c3 {[%clk 0:00:05]} 33. Rc2 {[%clk 0:00:24]}  Kd6 {[%clk 0:00:04]} 34. Rb3 {[%clk 0:00:24]}  h5 {[%clk 0:00:04]} 35. gxh5 {[%clk 0:00:24]}  Rh4 {[%clk 0:00:05]} 36. g4 {[%clk 0:00:22]}  f5 {[%clk 0:00:06]} 37. gxf5 {[%clk 0:00:20]}  Rxh5 {[%clk 0:00:05]} 38. Rbxc3 {[%clk 0:00:19]}  Rxc3 {[%clk 0:00:06]} 39. Rxc3 {[%clk 0:00:21]}  exf5 {[%clk 0:00:08]} 40. Nxf5+ {[%clk 0:00:22]}  Ke5 {[%clk 0:00:09]} 41. Ng3 {[%clk 0:00:23]}  Rh8 {[%clk 0:00:09]} 42. Rc5+ {[%clk 0:00:23]}  Kf4 {[%clk 0:00:08]} 43. Rc4+ {[%clk 0:00:24]}  Ke5 {[%clk 0:00:09]} 44. Kf3 {[%clk 0:00:25]}  Rf8+ {[%clk 0:00:07]} 45. Kg2 {[%clk 0:00:26]} 1-0


[Site "Internet"]

[Event "Chessable Masters - Torneo preliminare"]
[White "Aditya, Mittal"]
[Black "Kevlishvili, Robby"]
[WhiteFideId "35042025"]
[BlackFideId "1040634"]
[WhiteElo "2386"]
[BlackElo "2577"]
[Result "1-0"]
[Round "8"]
[TimeControl "600+2"]
[Date "2023.03.13"]
[WhiteClock "0:00:07"]
[BlackClock "0:00:22"]

1. d4 {[%clk 0:10:01]}  d5 {[%clk 0:10:01]} 2. c4 {[%clk 0:10:03]}  c6 {[%clk 0:10:02]} 3. Nf3 {[%clk 0:10:04]}  Nf6 {[%clk 0:10:03]} 4. Nc3 {[%clk 0:10:05]}  e6 {[%clk 0:10:04]} 5. Bg5 {[%clk 0:10:05]}  h6 {[%clk 0:10:05]} 6. Bh4 {[%clk 0:10:07]}  dxc4 {[%clk 0:10:05]} 7. e4 {[%clk 0:10:08]}  g5 {[%clk 0:10:07]} 8. Bg3 {[%clk 0:10:10]}  b5 {[%clk 0:10:08]} 9. Be2 {[%clk 0:10:10]}  Bb7 {[%clk 0:10:09]} 10. h4 {[%clk 0:10:09]}  g4 {[%clk 0:10:09]} 11. Ne5 {[%clk 0:10:10]}  Nbd7 {[%clk 0:10:10]} 12. Nxd7 {[%clk 0:10:01]}  Qxd7 {[%clk 0:10:07]} 13. Be5 {[%clk 0:10:02]}  Be7 {[%clk 0:09:53]} 14. Qc1 {[%clk 0:09:58]}  Rg8 {[%clk 0:08:47]} 15. Qxh6 {[%clk 0:09:45]}  Rg6 {[%clk 0:08:48]} 16. Qh8+ {[%clk 0:09:45]}  Rg8 {[%clk 0:08:49]} 17. Qh6 {[%clk 0:09:47]}  Rg6 {[%clk 0:08:51]} 18. Qe3 {[%clk 0:09:26]}  Nh5 {[%clk 0:08:49]} 19. b3 {[%clk 0:09:12]}  cxb3 {[%clk 0:07:07]} 20. axb3 {[%clk 0:09:12]}  a6 {[%clk 0:07:00]} 21. Rd1 {[%clk 0:08:31]}  f6 {[%clk 0:06:48]} 22. Bh2 {[%clk 0:08:17]}  Kf7 {[%clk 0:06:49]} 23. O-O {[%clk 0:07:45]}  Rh8 {[%clk 0:06:44]} 24. d5 {[%clk 0:06:56]}  cxd5 {[%clk 0:05:08]} 25. exd5 {[%clk 0:06:56]}  exd5 {[%clk 0:05:09]} 26. Bd3 {[%clk 0:06:08]}  f5 {[%clk 0:04:41]} 27. Be5 {[%clk 0:04:54]}  Re8 {[%clk 0:04:33]} 28. Qd4 {[%clk 0:04:36]}  Bd8 {[%clk 0:04:03]} 29. Ne2 {[%clk 0:04:04]}  Bb6 {[%clk 0:03:29]} 30. Qb2 {[%clk 0:04:06]}  d4 {[%clk 0:03:17]} 31. Nxd4 {[%clk 0:02:56]}  Qd5 {[%clk 0:00:44]} 32. Nf3 {[%clk 0:02:53]}  gxf3 {[%clk 0:00:45]} 33. Bc4 {[%clk 0:02:50]}  Rxg2+ {[%clk 0:00:46]} 34. Kh1 {[%clk 0:02:51]}  bxc4 {[%clk 0:00:39]} 35. Rxd5 {[%clk 0:02:52]}  Bxd5 {[%clk 0:00:40]} 36. bxc4 {[%clk 0:02:17]}  Bxc4 {[%clk 0:00:33]} 37. Rc1 {[%clk 0:01:50]}  Bb5 {[%clk 0:00:22]} 38. Qb3+ {[%clk 0:01:46]}  Kg6 {[%clk 0:00:22]} 39. Qxf3 {[%clk 0:01:23]}  Rg4 {[%clk 0:00:21]} 40. Rc6+ {[%clk 0:01:15]}  Bxc6 {[%clk 0:00:22]} 41. Qxc6+ {[%clk 0:01:17]}  Kf7 {[%clk 0:00:22]} 42. Qd7+ {[%clk 0:01:12]}  Re7 {[%clk 0:00:16]} 43. Qxf5+ {[%clk 0:01:13]}  Ke8 {[%clk 0:00:17]} 44. Qxg4 {[%clk 0:01:14]}  Rxe5 {[%clk 0:00:17]} 45. Qg6+ {[%clk 0:01:15]}  Ke7 {[%clk 0:00:17]} 46. Qxb6 {[%clk 0:01:17]}  Nf6 {[%clk 0:00:18]} 47. Qxa6 {[%clk 0:01:11]}  Re4 {[%clk 0:00:19]} 48. Qb7+ {[%clk 0:00:55]}  Ke6 {[%clk 0:00:19]} 49. Qc8+ {[%clk 0:00:50]}  Kf7 {[%clk 0:00:20]} 50. Qh3 {[%clk 0:00:47]}  Kg6 {[%clk 0:00:20]} 51. f3 {[%clk 0:00:31]}  Rd4 {[%clk 0:00:13]} 52. Qg2+ {[%clk 0:00:28]}  Kf7 {[%clk 0:00:12]} 53. Qg5 {[%clk 0:00:30]}  Rd5 {[%clk 0:00:14]} 54. Qf4 {[%clk 0:00:29]}  Kg6 {[%clk 0:00:14]} 55. Kg2 {[%clk 0:00:31]}  Rf5 {[%clk 0:00:14]} 56. Qg3+ {[%clk 0:00:31]}  Kf7 {[%clk 0:00:15]} 57. Qc7+ {[%clk 0:00:30]}  Kg6 {[%clk 0:00:16]} 58. Qd6 {[%clk 0:00:24]}  Kf7 {[%clk 0:00:17]} 59. Kg3 {[%clk 0:00:23]}  Rd5 {[%clk 0:00:16]} 60. Qc7+ {[%clk 0:00:23]}  Kg6 {[%clk 0:00:18]} 61. Qc6 {[%clk 0:00:22]}  Rf5 {[%clk 0:00:16]} 62. Qe6 {[%clk 0:00:23]}  Rh5 {[%clk 0:00:16]} 63. f4 {[%clk 0:00:22]}  Rf5 {[%clk 0:00:17]} 64. Qa6 {[%clk 0:00:11]}  Rh5 {[%clk 0:00:18]} 65. Qd3+ {[%clk 0:00:09]}  Rf5 {[%clk 0:00:13]} 66. Qc2 {[%clk 0:00:07]}  Nh5+ {[%clk 0:00:14]} 67. Kg4 {[%clk 0:00:08]}  Nf6+ {[%clk 0:00:15]} 68. Kf3 {[%clk 0:00:09]}  Nh5 {[%clk 0:00:16]} 69. Qc6+ {[%clk 0:00:07]}  Nf6 {[%clk 0:00:17]} 70. Qe6 {[%clk 0:00:07]}  Rh5 {[%clk 0:00:17]} 71. Qe1 {[%clk 0:00:07]}  Rf5 {[%clk 0:00:18]} 72. Qg3+ {[%clk 0:00:08]}  Kf7 {[%clk 0:00:18]} 73. Qg2 {[%clk 0:00:03]}  Rh5 {[%clk 0:00:18]} 74. Kg3 {[%clk 0:00:04]}  Rf5 {[%clk 0:00:19]} 75. Qe2 {[%clk 0:00:04]}  Rh5 {[%clk 0:00:20]} 76. Qd3 {[%clk 0:00:05]}  Rd5 {[%clk 0:00:20]} 77. Qb3 {[%clk 0:00:06]}  Kg6 {[%clk 0:00:21]} 78. Qc2+ {[%clk 0:00:05]}  Kf7 {[%clk 0:00:22]} 79. f5 {[%clk 0:00:04]}  Kg7 {[%clk 0:00:19]} 80. Qc7+ {[%clk 0:00:05]}  Rd7 {[%clk 0:00:20]} 81. Qe5 {[%clk 0:00:06]}  Rd5 {[%clk 0:00:22]} 82. Qe7+ {[%clk 0:00:07]} 1-0


[Site "Internet"]

[Event "Chessable Masters - Torneo preliminare"]
[White "Darini, Pouria"]
[Black "Vetoshko, Volodymyr"]
[WhiteFideId "12502200"]
[BlackFideId "14122480"]
[WhiteElo "2573"]
[BlackElo "2457"]
[Result "1-0"]
[Round "8"]
[TimeControl "600+2"]
[Date "2023.03.13"]
[WhiteClock "0:00:12"]
[BlackClock "0:00:02"]

1. e4 {[%clk 0:10:01]}  c5 {[%clk 0:09:59]} 2. Nf3 {[%clk 0:10:02]}  e6 {[%clk 0:10:00]} 3. d4 {[%clk 0:10:03]}  cxd4 {[%clk 0:10:02]} 4. Nxd4 {[%clk 0:10:04]}  a6 {[%clk 0:10:03]} 5. Be2 {[%clk 0:09:56]}  Nf6 {[%clk 0:09:41]} 6. Nc3 {[%clk 0:09:57]}  d6 {[%clk 0:09:01]} 7. O-O {[%clk 0:09:57]}  Be7 {[%clk 0:09:01]} 8. a4 {[%clk 0:09:58]}  O-O {[%clk 0:09:00]} 9. a5 {[%clk 0:09:58]}  Nc6 {[%clk 0:08:30]} 10. Nb3 {[%clk 0:09:59]}  e5 {[%clk 0:07:36]} 11. Bg5 {[%clk 0:09:33]}  Be6 {[%clk 0:07:14]} 12. Bxf6 {[%clk 0:09:34]}  Bxf6 {[%clk 0:07:16]} 13. Nd5 {[%clk 0:09:35]}  Bg5 {[%clk 0:06:36]} 14. c3 {[%clk 0:09:35]}  Rc8 {[%clk 0:05:49]} 15. g3 {[%clk 0:08:29]}  Ne7 {[%clk 0:05:33]} 16. Nb6 {[%clk 0:08:09]}  Rc7 {[%clk 0:05:09]} 17. Bf3 {[%clk 0:08:10]}  g6 {[%clk 0:04:19]} 18. Re1 {[%clk 0:07:28]}  h5 {[%clk 0:04:17]} 19. Nc1 {[%clk 0:06:41]}  Kg7 {[%clk 0:03:49]} 20. Nd3 {[%clk 0:06:41]}  f5 {[%clk 0:03:10]} 21. Nb4 {[%clk 0:06:38]}  h4 {[%clk 0:02:42]} 22. Qd3 {[%clk 0:06:25]}  hxg3 {[%clk 0:02:21]} 23. hxg3 {[%clk 0:06:24]}  d5 {[%clk 0:01:19]} 24. exd5 {[%clk 0:04:37]}  e4 {[%clk 0:01:19]} 25. Qd4+ {[%clk 0:04:22]}  Bf6 {[%clk 0:01:15]} 26. Qd1 {[%clk 0:04:23]}  Nxd5 {[%clk 0:00:38]} 27. N4xd5 {[%clk 0:04:23]}  Bxd5 {[%clk 0:00:39]} 28. Qxd5 {[%clk 0:04:16]}  exf3 {[%clk 0:00:39]} 29. Qxf3 {[%clk 0:04:13]}  Qd2 {[%clk 0:00:28]} 30. Re2 {[%clk 0:03:39]}  Qh6 {[%clk 0:00:29]} 31. Nd5 {[%clk 0:02:07]}  Rd7 {[%clk 0:00:30]} 32. Nxf6 {[%clk 0:02:03]}  Rxf6 {[%clk 0:00:32]} 33. Rae1 {[%clk 0:02:00]}  Rff7 {[%clk 0:00:25]} 34. c4 {[%clk 0:01:45]}  Qg5 {[%clk 0:00:23]} 35. Re6 {[%clk 0:01:46]}  Qd2 {[%clk 0:00:20]} 36. b3 {[%clk 0:01:14]}  Qxa5 {[%clk 0:00:20]} 37. Qe3 {[%clk 0:01:08]}  f4 {[%clk 0:00:14]} 38. gxf4 {[%clk 0:01:01]}  Qf5 {[%clk 0:00:12]} 39. Qg3 {[%clk 0:01:02]}  Rd4 {[%clk 0:00:07]} 40. R1e5 {[%clk 0:01:01]}  Qb1+ {[%clk 0:00:07]} 41. Kg2 {[%clk 0:01:02]}  Rdxf4 {[%clk 0:00:07]} 42. Re2 {[%clk 0:00:43]}  Qf5 {[%clk 0:00:06]} 43. R6e5 {[%clk 0:00:33]}  Qg4 {[%clk 0:00:05]} 44. Rg5 {[%clk 0:00:25]}  Qxe2 {[%clk 0:00:04]} 45. Rxg6+ {[%clk 0:00:26]}  Kf8 {[%clk 0:00:05]} 46. Rg8+ {[%clk 0:00:27]}  Ke7 {[%clk 0:00:06]} 47. Qg5+ {[%clk 0:00:28]}  Kd6 {[%clk 0:00:04]} 48. Qd5+ {[%clk 0:00:16]}  Kc7 {[%clk 0:00:03]} 49. Qc5+ {[%clk 0:00:12]}  Kd7 {[%clk 0:00:05]} 50. Qc8+ {[%clk 0:00:12]}  Kd6 {[%clk 0:00:03]} 51. Rd8+ {[%clk 0:00:13]}  Rd7 {[%clk 0:00:02]} 52. Rxd7+ {[%clk 0:00:12]} 1-0


[Site "Internet"]

[Event "Chessable Masters - Torneo preliminare"]
[White "Svane, Rasmus"]
[Black "Pap, Gyula"]
[WhiteFideId "4657101"]
[BlackFideId "725323"]
[WhiteElo "2621"]
[BlackElo "2563"]
[Result "1-0"]
[Round "8"]
[TimeControl "600+2"]
[Date "2023.03.13"]
[WhiteClock "0:00:18"]
[BlackClock "0:00:02"]

1. d4 {[%clk 0:09:59]}  d5 {[%clk 0:10:00]} 2. c4 {[%clk 0:09:57]}  e6 {[%clk 0:10:01]} 3. Nf3 {[%clk 0:09:59]}  Nf6 {[%clk 0:09:58]} 4. Nc3 {[%clk 0:10:00]}  Nbd7 {[%clk 0:09:58]} 5. Qc2 {[%clk 0:09:51]}  Bb4 {[%clk 0:09:05]} 6. cxd5 {[%clk 0:09:28]}  exd5 {[%clk 0:09:03]} 7. Bf4 {[%clk 0:09:04]}  Ne4 {[%clk 0:08:37]} 8. Rc1 {[%clk 0:07:14]}  O-O {[%clk 0:07:49]} 9. a3 {[%clk 0:06:42]}  Bxc3+ {[%clk 0:07:23]} 10. bxc3 {[%clk 0:06:42]}  c5 {[%clk 0:07:21]} 11. Nd2 {[%clk 0:06:21]}  Qf6 {[%clk 0:06:14]} 12. Be3 {[%clk 0:05:30]}  Nxd2 {[%clk 0:05:32]} 13. Qxd2 {[%clk 0:05:12]}  Nb6 {[%clk 0:05:31]} 14. dxc5 {[%clk 0:05:07]}  Nc4 {[%clk 0:05:31]} 15. Bd4 {[%clk 0:04:43]}  Nxd2 {[%clk 0:05:12]} 16. Bxf6 {[%clk 0:04:42]}  Nxf1 {[%clk 0:04:26]} 17. Bd4 {[%clk 0:04:21]}  Nxh2 {[%clk 0:04:26]} 18. Rxh2 {[%clk 0:04:21]}  Bd7 {[%clk 0:04:20]} 19. Rb1 {[%clk 0:04:20]}  Bc6 {[%clk 0:04:15]} 20. Kd2 {[%clk 0:04:18]}  Rfe8 {[%clk 0:04:06]} 21. g4 {[%clk 0:04:12]}  h6 {[%clk 0:04:04]} 22. Rg1 {[%clk 0:04:09]}  f6 {[%clk 0:02:52]} 23. f4 {[%clk 0:04:08]}  Kf7 {[%clk 0:02:08]} 24. g5 {[%clk 0:03:58]}  Rh8 {[%clk 0:01:44]} 25. gxf6 {[%clk 0:03:18]}  gxf6 {[%clk 0:01:43]} 26. f5 {[%clk 0:03:16]}  Raf8 {[%clk 0:01:08]} 27. Rg6 {[%clk 0:02:23]}  Ke7 {[%clk 0:01:08]} 28. Rh3 {[%clk 0:02:02]}  Rh7 {[%clk 0:01:00]} 29. Re3+ {[%clk 0:02:00]}  Kd7 {[%clk 0:01:01]} 30. Bxf6 {[%clk 0:01:28]}  Kc8 {[%clk 0:00:36]} 31. Re5 {[%clk 0:00:54]}  Rhf7 {[%clk 0:00:24]} 32. Re6 {[%clk 0:00:44]}  Bd7 {[%clk 0:00:20]} 33. Rd6 {[%clk 0:00:45]}  h5 {[%clk 0:00:04]} 34. Rh6 {[%clk 0:00:43]}  Bxf5 {[%clk 0:00:04]} 35. Bd4 {[%clk 0:00:39]}  Bd7 {[%clk 0:00:02]} 36. Rxd5 {[%clk 0:00:38]}  Bc6 {[%clk 0:00:03]} 37. Rdxh5 {[%clk 0:00:38]}  Re8 {[%clk 0:00:04]} 38. Rh8 {[%clk 0:00:37]}  Re7 {[%clk 0:00:05]} 39. Rxe8+ {[%clk 0:00:34]}  Rxe8 {[%clk 0:00:07]} 40. Be5 {[%clk 0:00:30]}  Kd8 {[%clk 0:00:05]} 41. Kd3 {[%clk 0:00:29]}  Bb5+ {[%clk 0:00:06]} 42. c4 {[%clk 0:00:29]}  Bc6 {[%clk 0:00:07]} 43. Kd4 {[%clk 0:00:27]}  Ke7 {[%clk 0:00:06]} 44. e4 {[%clk 0:00:24]}  Rg8 {[%clk 0:00:04]} 45. Rh7+ {[%clk 0:00:24]}  Ke6 {[%clk 0:00:04]} 46. Rh6+ {[%clk 0:00:24]}  Kd7 {[%clk 0:00:05]} 47. Rh7+ {[%clk 0:00:14]}  Ke6 {[%clk 0:00:05]} 48. Bd6 {[%clk 0:00:12]}  Rg4 {[%clk 0:00:06]} 49. Re7+ {[%clk 0:00:13]}  Kf6 {[%clk 0:00:07]} 50. Ke3 {[%clk 0:00:15]}  Rg8 {[%clk 0:00:04]} 51. e5+ {[%clk 0:00:14]}  Kg6 {[%clk 0:00:05]} 52. Kd4 {[%clk 0:00:10]}  Rh8 {[%clk 0:00:06]} 53. Rc7 {[%clk 0:00:08]}  Rh4+ {[%clk 0:00:05]} 54. Kc3 {[%clk 0:00:10]}  Rh3+ {[%clk 0:00:04]} 55. Kb4 {[%clk 0:00:11]}  a5+ {[%clk 0:00:04]} 56. Kxa5 {[%clk 0:00:11]}  Rxa3+ {[%clk 0:00:06]} 57. Kb4 {[%clk 0:00:13]}  Re3 {[%clk 0:00:06]} 58. Rc8 {[%clk 0:00:12]}  Kf7 {[%clk 0:00:06]} 59. Ka5 {[%clk 0:00:13]}  Rb3 {[%clk 0:00:03]} 60. Rc7+ {[%clk 0:00:12]}  Ke6 {[%clk 0:00:04]} 61. Re7+ {[%clk 0:00:14]}  Kf5 {[%clk 0:00:06]} 62. Rf7+ {[%clk 0:00:15]}  Kg6 {[%clk 0:00:06]} 63. Rf6+ {[%clk 0:00:15]}  Kg7 {[%clk 0:00:07]} 64. Rf4 {[%clk 0:00:16]}  Bd7 {[%clk 0:00:04]} 65. Bf8+ {[%clk 0:00:17]}  Kg8 {[%clk 0:00:03]} 66. Bd6 {[%clk 0:00:16]}  Be6 {[%clk 0:00:04]} 67. Ka4 {[%clk 0:00:13]}  Rb1 {[%clk 0:00:04]} 68. Ka5 {[%clk 0:00:12]}  Rb3 {[%clk 0:00:03]} 69. Rf6 {[%clk 0:00:12]}  Bxc4 {[%clk 0:00:04]} 70. e6 {[%clk 0:00:13]}  Re3 {[%clk 0:00:02]} 71. e7 {[%clk 0:00:14]}  Bf7 {[%clk 0:00:03]} 72. Kb6 {[%clk 0:00:15]}  Rb3+ {[%clk 0:00:03]} 73. Kc7 {[%clk 0:00:16]}  Kg7 {[%clk 0:00:04]} 74. Rf2 {[%clk 0:00:16]}  Bg6 {[%clk 0:00:02]} 75. Rg2 {[%clk 0:00:16]}  Re3 {[%clk 0:00:03]} 76. Kxb7 {[%clk 0:00:17]}  Kf7 {[%clk 0:00:02]} 77. Kc7 {[%clk 0:00:17]}  Rb3 {[%clk 0:00:02]} 78. Rxg6 {[%clk 0:00:18]} 1-0


[Site "Internet"]

[Event "Chessable Masters - Torneo preliminare"]
[White "Bortnyk, Olexandr"]
[Black "Steinberg, Nitzan"]
[WhiteFideId "14120828"]
[BlackFideId "2801795"]
[WhiteElo "2643"]
[BlackElo "2500"]
[Result "1-0"]
[Round "8"]
[TimeControl "600+2"]
[Date "2023.03.13"]
[WhiteClock "0:00:59"]
[BlackClock "0:02:06"]

1. d4 {[%clk 0:10:01]}  d5 {[%clk 0:09:59]} 2. Nc3 {[%clk 0:10:03]}  Nf6 {[%clk 0:10:00]} 3. Bf4 {[%clk 0:10:04]}  e6 {[%clk 0:10:00]} 4. Nb5 {[%clk 0:10:05]}  Na6 {[%clk 0:10:01]} 5. e3 {[%clk 0:10:06]}  c6 {[%clk 0:10:01]} 6. Nc3 {[%clk 0:10:07]}  Bb4 {[%clk 0:10:01]} 7. Bxa6 {[%clk 0:10:06]}  bxa6 {[%clk 0:10:02]} 8. Ne2 {[%clk 0:10:08]}  O-O {[%clk 0:09:56]} 9. O-O {[%clk 0:10:08]}  a5 {[%clk 0:09:57]} 10. Na4 {[%clk 0:10:07]}  Ba6 {[%clk 0:09:53]} 11. c3 {[%clk 0:10:06]}  Be7 {[%clk 0:09:47]} 12. Re1 {[%clk 0:10:05]}  Nd7 {[%clk 0:09:33]} 13. Bg3 {[%clk 0:09:51]}  c5 {[%clk 0:08:31]} 14. Nf4 {[%clk 0:09:51]}  c4 {[%clk 0:08:14]} 15. b3 {[%clk 0:09:33]}  Rc8 {[%clk 0:07:54]} 16. bxc4 {[%clk 0:08:32]}  Rxc4 {[%clk 0:07:36]} 17. Rc1 {[%clk 0:07:30]}  Qc8 {[%clk 0:07:28]} 18. Qb3 {[%clk 0:06:40]}  Nf6 {[%clk 0:06:12]} 19. Bh4 {[%clk 0:06:25]}  Qd7 {[%clk 0:05:36]} 20. Bxf6 {[%clk 0:06:17]}  gxf6 {[%clk 0:05:32]} 21. Nb2 {[%clk 0:06:06]}  Rc7 {[%clk 0:05:27]} 22. e4 {[%clk 0:05:20]}  Rb7 {[%clk 0:04:57]} 23. Qc2 {[%clk 0:04:52]}  Ba3 {[%clk 0:04:58]} 24. Nh5 {[%clk 0:04:20]}  Qd8 {[%clk 0:04:53]} 25. Qd2 {[%clk 0:03:47]}  Kh8 {[%clk 0:04:34]} 26. Qh6 {[%clk 0:03:45]}  Rg8 {[%clk 0:04:35]} 27. Nxf6 {[%clk 0:03:46]}  Rg7 {[%clk 0:04:36]} 28. Na4 {[%clk 0:02:23]}  Bxc1 {[%clk 0:03:54]} 29. Rxc1 {[%clk 0:02:25]}  Qf8 {[%clk 0:03:54]} 30. Kh1 {[%clk 0:02:09]}  dxe4 {[%clk 0:03:04]} 31. Nxh7 {[%clk 0:01:30]}  Qg8 {[%clk 0:02:51]} 32. Nf6+ {[%clk 0:01:29]}  Rh7 {[%clk 0:02:53]} 33. Nxg8 {[%clk 0:01:30]}  Rxh6 {[%clk 0:02:54]} 34. Nxh6 {[%clk 0:01:31]}  Kg7 {[%clk 0:02:28]} 35. Nc5 {[%clk 0:01:28]}  Rb2 {[%clk 0:02:23]} 36. Nxf7 {[%clk 0:01:29]}  Rxf2 {[%clk 0:02:14]} 37. Nxa6 {[%clk 0:01:18]}  Kxf7 {[%clk 0:02:15]} 38. a4 {[%clk 0:01:15]}  e5 {[%clk 0:02:13]} 39. Nc5 {[%clk 0:01:10]}  exd4 {[%clk 0:02:10]} 40. cxd4 {[%clk 0:01:05]}  e3 {[%clk 0:02:12]} 41. Kg1 {[%clk 0:01:04]}  Rd2 {[%clk 0:02:12]} 42. Re1 {[%clk 0:01:01]}  Rxd4 {[%clk 0:02:05]} 43. Rxe3 {[%clk 0:01:02]}  Rc4 {[%clk 0:02:05]} 44. Re5 {[%clk 0:01:02]}  Kf6 {[%clk 0:02:06]} 45. Nd7+ {[%clk 0:00:59]} 1-0


[Site "Internet"]